bitfinex/quotes_BTCUSD_20250119
["timestamp","ask_amount","ask_price","bid_price","bid_amount"]
[1737297987707,0.18450794,104930.0,104920.0,0.093314]
[1737297988112,0.09924081,104930.0,104920.0,0.093314]
[1737297988541,0.19454181,104930.0,104920.0,0.093314]
[1737297989001,0.38514881,104930.0,104910.0,0.4769522]
[1737297989218,0.19455081,104920.0,104910.0,0.0003882]
[1737297989419,0.09924081,104920.0,104910.0,0.0957072]
[1737297989620,0.19455081,104920.0,104910.0,0.0957072]
[1737297989861,0.09924081,104920.0,104910.0,0.0957072]
[1737297990277,0.09924081,104920.0,104910.0,0.16550796]
[1737297990619,0.09924081,104920.0,104910.0,0.38626183]
[1737297990820,0.59748441,104930.0,104920.0,0.09531]
[1737297991044,0.69672522,104930.0,104920.0,0.16511076]
[1737297992009,0.69672522,104930.0,104920.0,0.16606375]
[1737297992010,0.09924081,104930.0,104920.0,0.16606375]
[1737297992643,0.09924081,104930.0,104920.0,0.09531]
[1737297993968,0.38514881,104930.0,104920.0,0.09531]
[1737297994291,0.38514881,104930.0,104910.0,0.6269522]
[1737297994494,0.09924081,104920.0,104910.0,0.4363242]
[1737297997686,0.107948,104920.0,104910.0,0.4363242]
[1737297998688,0.09924081,104920.0,104910.0,0.4363242]
[1737298000664,0.09924081,104920.0,104910.0,0.50612496]
[1737298003021,0.09924081,104920.0,104910.0,0.57592572]
[1737298003319,0.09924081,104920.0,104910.0,0.50612496]
[1737298003825,0.09924081,104920.0,104910.0,0.4363242]
[1737298005174,0.19455081,104920.0,104910.0,0.0957002]
[1737298006292,0.19455081,104920.0,104910.0,0.0003882]
[1737298006675,0.27981794,104920.0,104910.0,0.0957072]
[1737298006887,0.27981794,104920.0,104910.0,0.0003882]
[1737298008065,0.28886308,104920.0,104910.0,0.0957072]
[1737298008274,0.58740689,104920.0,104910.0,0.0003882]
[1737298009140,0.58740689,104920.0,104910.0,0.0957072]
[1737298009274,0.58740689,104920.0,104910.0,0.0003882]
[1737298010383,0.58740689,104920.0,104910.0,0.0957072]
[1737298010999,0.58740689,104920.0,104910.0,0.0003882]
[1737298011203,0.58740689,104920.0,104910.0,0.0957072]
[1737298012196,0.58740689,104920.0,104910.0,0.0003882]
[1737298013044,1.02784844,104920.0,104910.0,0.0003882]
[1737298013230,1.07284844,104920.0,104910.0,0.0003882]
[1737298013641,1.00304768,104920.0,104910.0,0.0003882]
[1737298013878,1.28652191,104920.0,104910.0,0.0003882]
[1737298014056,1.21672115,104920.0,104910.0,0.0003882]
[1737298014413,1.28652191,104920.0,104910.0,0.0003882]
[1737298014622,1.11748034,104920.0,104910.0,0.0003882]
[1737298014820,1.4872811,104920.0,104910.0,0.0003882]
[1737298015026,1.39825344,104920.0,104910.0,0.0003882]
[1737298015223,1.54825344,104920.0,104910.0,0.0003882]
[1737298016168,1.47845268,104920.0,104910.0,0.0003882]
[1737298016489,1.54825344,104920.0,104910.0,0.0003882]
[1737298016758,1.47845268,104920.0,104910.0,0.0003882]
[1737298017693,1.54825344,104920.0,104910.0,0.0003882]
[1737298018323,1.47845268,104920.0,104910.0,0.0003882]
[1737298018482,1.05545268,104920.0,104900.0,0.26045676]
[1737298018685,0.73820187,104920.0,104910.0,0.16511976]
[1737298018891,0.83744268,104920.0,104910.0,0.095319]
[1737298019407,0.36585454,104920.0,104910.0,0.095319]
[1737298020673,0.49427794,104920.0,104910.0,0.095319]
[1737298022632,0.62269347,104920.0,104900.0,0.64174376]
[1737298022841,0.52345266,104920.0,104910.0,0.095319]
[1737298023163,0.62269347,104920.0,104910.0,0.095319]
[1737298023695,0.40875304,104920.0,104910.0,0.095319]
[1737298024146,0.40875304,104920.0,104910.0,0.0957472]
[1737298024518,0.50406304,104920.0,104910.0,0.0957472]
[1737298024968,0.50406304,104920.0,104910.0,0.0004282]
[1737298025938,0.50406304,104920.0,104910.0,0.16554796]
[1737298026091,0.58958794,104920.0,104910.0,0.16554796]
[1737298026287,0.58958794,104920.0,104910.0,0.07022896]
[1737298026516,0.58958794,104920.0,104910.0,0.0004282]
[1737298027922,0.095328,104900.0,104890.0,0.145337]
[1737298028125,0.49041533,104900.0,104890.0,0.05]
[1737298028286,0.59041533,104900.0,104890.0,0.048]
[1737298028809,0.74041533,104900.0,104890.0,0.048]
[1737298029181,0.79041533,104900.0,104890.0,0.048]
[1737298029339,0.73965614,104900.0,104890.0,0.00643374]
[1737298029559,0.99632551,104900.0,104890.0,0.00643374]
[1737298029770,0.64041533,104900.0,104890.0,0.00643374]
[1737298030142,0.57061457,104900.0,104890.0,0.00643374]
[1737298030428,0.82061457,104900.0,104890.0,0.00643374]
[1737298031581,1.62137217,104900.0,104890.0,0.00643374]
[1737298031783,1.63018637,104900.0,104890.0,0.00643374]
[1737298032202,1.48018637,104900.0,104890.0,0.00643374]
[1737298032363,1.63018637,104900.0,104890.0,0.00643374]
[1737298032640,1.3414133,104900.0,104890.0,0.00643374]
[1737298033020,0.095347,104880.0,104870.0,0.0504285]
[1737298033308,0.19458781,104880.0,104870.0,0.05092887]
[1737298033483,0.19895964,104880.0,104870.0,0.05092887]
[1737298034105,0.19895964,104880.0,104870.0,0.14628487]
[1737298034644,0.58332061,104880.0,104870.0,0.05092887]
[1737298034943,0.65312137,104880.0,104870.0,0.05092887]
[1737298035202,0.58332061,104880.0,104870.0,0.05092887]
[1737298035713,0.58332061,104880.0,104870.0,0.14628487]
[1737298036642,0.48797361,104880.0,104870.0,0.05092887]
[1737298036844,0.41249351,104880.0,104870.0,0.14628487]
[1737298037107,0.41249351,104880.0,104870.0,0.05092887]
[1737298037797,0.42124806,104880.0,104870.0,0.05092887]
[1737298039097,0.29312774,104880.0,104870.0,0.05092887]
[1737298039877,0.29312774,104880.0,104870.0,0.14628487]
[1737298040161,0.29312774,104880.0,104870.0,0.05092887]
[1737298040334,0.19778074,104880.0,104870.0,0.05092887]
[1737298040537,0.29312774,104880.0,104870.0,0.14628487]
[1737298040708,0.29312774,104880.0,104870.0,0.05092887]
[1737298043032,0.29312774,104880.0,104870.0,0.14628487]
[1737298043311,0.19778074,104880.0,104870.0,0.21608563]
[1737298043466,0.18902619,104880.0,104870.0,0.29688563]
[1737298043647,0.18902619,104880.0,104870.0,0.49608563]
[1737298043851,0.18465436,104880.0,104870.0,0.50511336]
[1737298044250,0.18465436,104880.0,104870.0,0.49608563]
[1737298044656,0.09924081,104880.0,104870.0,0.49608563]
[1737298045260,0.09924081,104880.0,104870.0,0.56588639]
[1737298045466,2.78436097,104900.0,104890.0,0.095337]
[1737298045683,2.49924081,104900.0,104890.0,0.23589178]
[1737298045913,2.49924081,104900.0,104890.0,0.23493852]
[1737298046176,2.49924081,104900.0,104890.0,0.51403852]
[1737298046340,2.4,104900.0,104890.0,0.51403852]
[1737298046656,2.4,104900.0,104890.0,0.76403852]
[1737298046962,2.36808164,104900.0,104890.0,0.76403852]
[1737298047468,2.46732245,104900.0,104890.0,0.44423776]
[1737298048281,2.46732245,104900.0,104890.0,0.095337]
[1737298048483,2.46732245,104900.0,104890.0,0.16513776]
[1737298048721,2.46732245,104900.0,104890.0,0.095337]
[1737298049462,2.46732245,104900.0,104890.0,0.16513776]
[1737298051267,2.46732245,104900.0,104890.0,0.23589183]
[1737298051506,2.46732245,104900.0,104890.0,0.38493852]
[1737298051840,2.46732245,104900.0,104890.0,0.46813852]
[1737298052042,2.471489,104900.0,104890.0,0.46813852]
[1737298053242,2.37224819,104900.0,104890.0,0.61403852]
[1737298055393,2.37224819,104900.0,104890.0,0.63344833]
[1737298055580,2.37224819,104900.0,104890.0,0.78344833]
[1737298055780,2.37224819,104900.0,104890.0,0.79240409]
[1737298058594,2.37224819,104900.0,104890.0,0.79283239]
[1737298058753,2.37314762,104900.0,104890.0,0.79283239]
[1737298060079,2.11158562,104900.0,104890.0,0.9150732]
[1737298060286,1.85538562,104900.0,104890.0,0.7859732]
[1737298060492,1.81668562,104900.0,104890.0,0.7859732]
[1737298061828,1.81668562,104900.0,104890.0,0.7629732]
[1737298062527,1.79761962,104900.0,104890.0,0.7859732]
[1737298062977,1.72135562,104900.0,104890.0,0.7859732]
[1737298064160,1.72135562,104900.0,104890.0,0.7629732]
[1737298064982,0.00506598,104900.0,104890.0,0.7629732]
[1737298067237,0.00506598,104900.0,104890.0,0.7859732]
[1737298067521,9.8e-07,104900.0,104890.0,0.7859732]
[1737298067945,9.8e-07,104900.0,104890.0,0.6859732]
[1737298068123,9.8e-07,104900.0,104890.0,0.7859732]
[1737298068732,9.8e-07,104900.0,104890.0,0.7629732]
[1737298070298,9.8e-07,104900.0,104890.0,0.66373239]
[1737298072669,9.8e-07,104900.0,104890.0,0.7629732]
[1737298073885,9.8e-07,104900.0,104890.0,0.7859732]
[1737298074491,2e-07,104920.0,104910.0,0.495319]
[1737298074776,2e-07,104920.0,104910.0,0.73416133]
[1737298075834,4.987e-05,104920.0,104910.0,0.73416133]
[1737298076231,4.987e-05,104920.0,104910.0,0.63492052]
[1737298076649,4.987e-05,104920.0,104910.0,0.31511976]
[1737298076847,0.08164987,104920.0,104910.0,0.31511976]
[1737298078216,0.08164987,104920.0,104910.0,0.54383551]
[1737298079802,0.08164987,104920.0,104910.0,0.64383551]
[1737298080156,8.7e-07,104920.0,104910.0,0.74307632]
[1737298080986,8.7e-07,104920.0,104910.0,0.76607632]
[1737298082071,9e-08,104930.0,104920.0,0.34531]
[1737298082401,4.3e-07,104940.0,104930.0,0.518301]
[1737298082606,4.3e-07,104940.0,104930.0,0.75714333]
[1737298084331,4.4e-07,104950.0,104930.0,0.75714333]
[1737298084554,8.9e-07,104950.0,104940.0,0.75808687]
[1737298084760,8.9e-07,104950.0,104940.0,0.75713433]
[1737298084929,8.9e-07,104950.0,104940.0,0.78171889]
[1737298085135,8.9e-07,104950.0,104940.0,0.73413433]
[1737298087015,8.9e-07,104950.0,104940.0,0.63489352]
[1737298087182,8.9e-07,104950.0,104940.0,0.395292]
[1737298087374,0.04940089,104950.0,104940.0,0.38489352]
[1737298088168,8.9e-07,104950.0,104940.0,0.23489352]
[1737298088363,8.9e-07,104950.0,104940.0,0.33489352]
[1737298088502,8.9e-07,104950.0,104940.0,0.48489352]
[1737298088705,8.9e-07,104950.0,104940.0,0.63489352]
[1737298088930,8.9e-07,104950.0,104940.0,0.73413433]
[1737298089724,8.9e-07,104950.0,104940.0,0.74320337]
[1737298090263,8.9e-07,104950.0,104940.0,0.76274234]
[1737298091080,8.9e-07,104950.0,104940.0,0.78574234]
[1737298091499,0.07789964,104970.0,104960.0,0.495274]
[1737298091500,5.4e-07,104970.0,104960.0,0.495274]
[1737298091732,5.4e-07,104970.0,104960.0,0.73411633]
[1737298091936,5.4e-07,104970.0,104960.0,0.63487552]
[1737298092132,0.07700054,104970.0,104960.0,0.38487552]
[1737298093031,0.07700054,104970.0,104960.0,0.53487552]
[1737298093312,0.07700054,104970.0,104960.0,0.38487552]
[1737298095469,0.07700054,104970.0,104960.0,0.53487552]
[1737298095703,0.07700054,104970.0,104960.0,0.63487552]
[1737298096768,5.4e-07,104970.0,104960.0,0.73411633]
[1737298096995,5.4e-07,104970.0,104960.0,0.75305102]
[1737298097183,5.4e-07,104970.0,104960.0,0.60305102]
[1737298098335,5.4e-07,104970.0,104960.0,0.50305102]
[1737298098493,5.4e-07,104970.0,104960.0,0.60305102]
[1737298099313,0.12729964,104980.0,104970.0,0.48486652]
[1737298099665,0.00089964,104980.0,104970.0,0.63486652]
[1737298099867,0.12729415,105000.0,104990.0,0.095247]
[1737298100222,0.12779465,105000.0,104990.0,0.16600005]
[1737298101074,0.12779465,105000.0,104990.0,0.23580081]
[1737298101286,0.12779465,105000.0,104990.0,0.16504776]
[1737298101485,0.12779465,105000.0,104990.0,0.16600005]
[1737298101753,0.12779465,105000.0,104990.0,0.23580081]
[1737298101919,0.12779465,105000.0,104990.0,0.23484852]
[1737298102118,0.12779465,105000.0,104990.0,0.38484852]
[1737298103373,0.12779465,105000.0,104990.0,0.48484852]
[1737298103599,0.07839465,105000.0,104990.0,0.48484852]
[1737298103940,0.00139465,105000.0,104990.0,0.63484852]
[1737298104348,0.00139465,105000.0,104990.0,0.64377911]
[1737298106627,0.00129998,105000.0,104990.0,0.64377911]
[1737298107065,0.00129998,105000.0,104990.0,0.66292587]
[1737298107638,0.00129998,105000.0,104990.0,0.70099487]
[1737298109261,9.8e-07,105000.0,104990.0,0.80023568]
[1737298109685,9.8e-07,105000.0,104990.0,0.82482024]
[1737298110088,9.8e-07,105000.0,104990.0,0.84782024]
[1737298112452,9.8e-07,105000.0,104990.0,0.82323568]
[1737298115641,0.00089922,105030.0,105010.0,0.590442]
[1737298115784,0.00104931,105030.0,105020.0,0.23577243]
[1737298116019,0.00104931,105030.0,105020.0,0.33482052]
[1737298118126,0.00104931,105030.0,105020.0,0.195219]
[1737298118318,0.00104931,105030.0,105020.0,0.33577239]
[1737298118523,0.12774931,105030.0,105020.0,0.33482052]
[1737298119888,0.12774931,105030.0,105020.0,0.23482052]
[1737298120452,0.12774931,105030.0,105020.0,0.16501976]
[1737298120660,0.12774931,105030.0,105020.0,0.23577251]
[1737298120879,0.12774931,105030.0,105020.0,0.38482052]
[1737298121082,0.12774931,105030.0,105020.0,0.48482052]
[1737298121381,0.07794931,105030.0,105020.0,0.48482052]
[1737298124902,0.07794931,105030.0,105020.0,0.38482052]
[1737298125256,0.07794931,105030.0,105020.0,0.48482052]
[1737298125674,0.07794931,105030.0,105020.0,0.38482052]
[1737298125894,0.12494931,105030.0,105020.0,0.38482052]
[1737298126191,0.12494931,105030.0,105020.0,0.39396035]
[1737298129038,0.00104931,105030.0,105020.0,0.59320116]
[1737298129295,0.00104931,105030.0,105020.0,0.74320116]
[1737298130118,3.1e-07,105030.0,105020.0,0.767199]
[1737298130486,0.00042791,105030.0,105020.0,0.767199]
[1737298130624,9.1e-07,105030.0,105020.0,0.767199]
[1737298131665,0.12959943,105050.0,105040.0,0.195201]
[1737298131862,4.3e-07,105050.0,105040.0,0.75899295]
[1737298132068,4.3e-07,105050.0,105040.0,0.75804117]
[1737298132426,4.3e-07,105050.0,105040.0,0.73404333]
[1737298133592,4.3e-07,105050.0,105040.0,0.75804117]
[1737298133964,0.13120043,105050.0,105040.0,0.095201]
[1737298134166,0.13120043,105050.0,105040.0,0.16500176]
[1737298134368,0.23481978,105050.0,105040.0,0.16500176]
[1737298134727,0.23481978,105050.0,105040.0,0.245201]
[1737298134946,0.23481978,105050.0,105040.0,0.095201]
[1737298135138,0.23481978,105050.0,105040.0,0.16500176]
[1737298135332,0.23481978,105050.0,105040.0,0.16595365]
[1737298135738,0.23481978,105050.0,105040.0,0.31595365]
[1737298135962,0.23481978,105050.0,105040.0,0.31500176]
[1737298136799,0.23481978,105050.0,105040.0,0.38480252]
[1737298136991,0.23481978,105050.0,105040.0,0.31500176]
[1737298137429,0.13557897,105050.0,105040.0,0.38480252]
[1737298139213,0.13557897,105050.0,105040.0,0.48480252]
[1737298139448,0.08677897,105050.0,105040.0,0.48480252]
[1737298140473,0.00437897,105050.0,105040.0,0.58404333]
[1737298141506,0.00437897,105050.0,105040.0,0.73404333]
[1737298142487,0.00437897,105050.0,105040.0,0.75804117]
[1737298142925,0.00437897,105050.0,105040.0,0.76690757]
[1737298144238,0.00089901,105060.0,105050.0,0.345192]
[1737298144381,0.00089901,105060.0,105050.0,0.58403433]
[1737298144585,0.00089901,105060.0,105050.0,0.60803217]
[1737298145007,1e-08,105060.0,105050.0,0.60803217]
[1737298145250,1e-08,105060.0,105050.0,0.78103217]
[1737298145801,1e-08,105060.0,105050.0,0.75703433]
[1737298146052,1e-08,105060.0,105050.0,0.78103217]
[1737298146898,8.7e-07,105070.0,105060.0,0.54509751]
[1737298147100,7.3e-07,105080.0,105070.0,0.368174]
[1737298147348,0.00015079,105080.0,105070.0,0.78393084]
[1737298148336,7.9e-07,105080.0,105070.0,0.78393084]
[1737298148543,7.9e-07,105080.0,105070.0,0.75701633]
[1737298148876,0.08070079,105080.0,105070.0,0.56421557]
[1737298149018,0.08070079,105080.0,105070.0,0.66421557]
[1737298149230,0.08070079,105080.0,105070.0,0.41497476]
[1737298149487,0.08070079,105080.0,105070.0,0.31497476]
[1737298149776,0.08070079,105080.0,105070.0,0.41497476]
[1737298149995,0.08070079,105080.0,105070.0,0.48477552]
[1737298150407,0.08070079,105080.0,105070.0,0.50428584]
[1737298150608,7.9e-07,105080.0,105070.0,0.60352665]
[1737298151534,7.9e-07,105080.0,105070.0,0.75352665]
[1737298151660,7.9e-07,105080.0,105070.0,0.77652665]
[1737298151860,7.9e-07,105080.0,105070.0,0.78551413]
[1737298152461,7.9e-07,105080.0,105070.0,0.68551413]
[1737298152668,7.9e-07,105080.0,105070.0,0.78551413]
[1737298152872,7.9e-07,105080.0,105070.0,0.66327332]
[1737298153710,7.9e-07,105080.0,105070.0,0.41327332]
[1737298153917,0.13060079,105080.0,105070.0,0.51327332]
[1737298154142,0.13060079,105080.0,105070.0,0.41327332]
[1737298154547,0.13102819,105080.0,105070.0,0.41327332]
[1737298155783,0.13102819,105080.0,105070.0,0.34347256]
[1737298156872,0.13102819,105080.0,105070.0,0.33448508]
[1737298157226,0.13102819,105080.0,105070.0,0.32524699]
[1737298163598,0.230269,105080.0,105070.0,0.32524699]
[1737298165905,0.230269,105080.0,105070.0,0.32614432]
[1737298166776,0.13102819,105080.0,105070.0,0.39594508]
[1737298169270,0.00042819,105080.0,105070.0,0.59518589]
[1737298172200,0.00042819,105080.0,105070.0,0.74518589]
[1737298173584,1.9e-07,105080.0,105070.0,0.82448589]
[1737298175352,1.9e-07,105080.0,105070.0,0.8514004]
[1737298178101,1.9e-07,105080.0,105070.0,0.7951004]
[1737298179107,1.9e-07,105080.0,105070.0,0.76818589]
[1737298179347,1.9e-07,105080.0,105070.0,0.74518589]
[1737298181103,1.9e-07,105080.0,105070.0,0.76818589]
[1737298181501,1.9e-07,105080.0,105070.0,0.7951004]
[1737298183156,1.9e-07,105080.0,105070.0,0.76818589]
[1737298183866,0.08120019,105080.0,105070.0,0.76818589]
[1737298185110,0.08120019,105080.0,105070.0,0.74518589]
[1737298185500,0.08120019,105080.0,105070.0,0.59518589]
[1737298186136,0.08120019,105080.0,105070.0,0.74518589]
[1737298186342,0.08120019,105080.0,105070.0,0.59518589]
[1737298186707,0.12690019,105080.0,105070.0,0.49594508]
[1737298189348,0.0791,105090.0,105080.0,0.535491]
[1737298189705,0.0791,105090.0,105080.0,0.77433333]
[1737298192564,0.0791,105090.0,105080.0,0.71312652]
[1737298192760,0.0791,105090.0,105080.0,0.81236733]
[1737298194452,0.07819466,105090.0,105080.0,0.81236733]
[1737298194824,0.07819466,105090.0,105080.0,0.89710883]
[1737298195658,0.07819466,105090.0,105080.0,0.79786802]
[1737298195857,0.07819466,105090.0,105080.0,0.71312652]
[1737298197299,0.07819466,105090.0,105080.0,0.72241881]
[1737298197526,0.07819466,105090.0,105080.0,0.62241881]
[1737298197655,0.07819466,105090.0,105080.0,0.72241881]
[1737298198629,0.07819466,105090.0,105080.0,0.62241881]
[1737298199407,0.07819466,105090.0,105080.0,0.72241881]
[1737298199979,0.07862196,105090.0,105080.0,0.72241881]
[1737298200186,0.07862196,105090.0,105080.0,0.62241881]
[1737298200391,0.12432196,105090.0,105080.0,0.62241881]
[1737298202529,0.12432196,105090.0,105080.0,0.82165962]
[1737298202783,0.12432196,105090.0,105080.0,0.72241881]
[1737298204240,0.12432196,105090.0,105080.0,0.82165962]
[1737298204441,0.0004273,105090.0,105080.0,0.84929424]
[1737298204656,0.0004273,105090.0,105080.0,0.82165962]
[1737298205351,0.0455273,105090.0,105080.0,0.80716031]
[1737298207338,0.1209273,105090.0,105080.0,0.80716031]
[1737298207688,0.1209273,105090.0,105080.0,0.72241881]
[1737298208038,0.1209273,105090.0,105080.0,0.82165962]
[1737298208247,3e-07,105090.0,105080.0,0.82165962]
[1737298208685,0.0754003,105090.0,105080.0,0.82165962]
[1737298209300,0.0754003,105090.0,105080.0,0.90640112]
[1737298209474,0.0768403,105090.0,105080.0,0.90640112]
[1737298210257,0.0768403,105090.0,105080.0,0.82165962]
[1737298210892,0.0768403,105090.0,105080.0,0.90640112]
[1737298211344,0.0768403,105090.0,105080.0,0.80640112]
[1737298211472,0.0768403,105090.0,105080.0,0.90640112]
[1737298212081,0.0768403,105090.0,105080.0,0.90729824]
[1737298213569,0.0014403,105090.0,105080.0,0.90729824]
[1737298214984,0.1219403,105090.0,105080.0,0.70805743]
[1737298215362,0.1219403,105090.0,105080.0,1.0046527]
[1737298216384,0.1219403,105090.0,105080.0,0.70805743]
[1737298217353,0.1219403,105090.0,105080.0,0.48825667]
[1737298217557,0.1219403,105090.0,105080.0,0.54876514]
[1737298218028,0.1219403,105090.0,105080.0,0.7878434]
[1737298219265,0.1219403,105090.0,105080.0,0.57598964]
[1737298221326,0.22118111,105090.0,105080.0,0.28638812]
[1737298221995,0.22118111,105090.0,105080.0,0.35618888]
[1737298222199,0.22118111,105090.0,105080.0,0.50618888]
[1737298223046,0.60428327,105090.0,105080.0,0.50618888]
[1737298223221,0.60428327,105090.0,105080.0,0.57598964]
[1737298223520,0.60428327,105090.0,105080.0,0.50618888]
[1737298223719,0.60428327,105090.0,105080.0,0.57598964]
[1737298224063,0.43401564,105090.0,105080.0,0.50618888]
[1737298226109,0.43401564,105090.0,105080.0,0.57598964]
[1737298226319,0.30631492,105090.0,105080.0,0.50618888]
[1737298228009,0.30631492,105090.0,105080.0,0.50766388]
[1737298230769,0.30555824,105090.0,105080.0,0.50766388]
[1737298231167,0.30555824,105090.0,105080.0,0.57746464]
[1737298231371,0.30555824,105090.0,105080.0,0.50766388]
[1737298231828,0.30921199,105090.0,105080.0,0.50766388]
[1737298232028,0.22407818,105090.0,105080.0,0.50766388]
[1737298232598,0.22407818,105090.0,105080.0,0.57746464]
[1737298232781,0.22407818,105090.0,105080.0,0.50766388]
[1737298233716,0.22407818,105090.0,105080.0,0.43786312]
[1737298233923,0.22407818,105090.0,105080.0,0.50766388]
[1737298234117,0.22407818,105090.0,105080.0,0.43786312]
[1737298235601,0.22450618,105090.0,105080.0,0.43786312]
[1737298236860,0.30963999,105090.0,105080.0,0.43786312]
[1737298241191,0.43734071,105090.0,105080.0,0.43786312]
[1737298244157,0.30963999,105090.0,105080.0,0.43786312]
[1737298246612,0.30963999,105090.0,105080.0,0.50766388]
[1737298247023,0.60760834,105090.0,105080.0,0.50766388]
[1737298247230,0.50836753,105090.0,105080.0,0.57746464]
[1737298247451,0.50836753,105090.0,105080.0,0.50766388]
[1737298247819,0.3380999,105090.0,105080.0,0.50766388]
[1737298248820,0.21039918,105090.0,105080.0,0.50766388]
[1737298249734,0.30963999,105090.0,105080.0,0.50766388]
[1737298251321,0.43734071,105090.0,105080.0,0.50766388]
[1737298251821,0.43734071,105090.0,105080.0,0.43786312]
[1737298252726,0.53249671,105090.0,105080.0,0.09753712]
[1737298253306,0.77529747,105090.0,105080.0,0.00237212]
[1737298253487,0.87453828,105090.0,105080.0,0.00237212]
[1737298253690,1.04480591,105090.0,105080.0,0.00237212]
[1737298253895,0.89480591,105090.0,105080.0,0.00237212]
[1737298254121,0.25,105080.0,105070.0,0.00089733]
[1737298254295,0.56920581,105080.0,105070.0,0.00089733]
[1737298254497,0.37769465,105080.0,105070.0,0.09607133]
[1737298254728,0.22769465,105080.0,105070.0,0.16587209]
[1737298255091,0.25069465,105080.0,105070.0,0.16587209]
[1737298255522,0.25069465,105080.0,105070.0,0.09315177]
[1737298255775,0.25069465,105080.0,105070.0,0.16295253]
[1737298256383,0.84873098,105080.0,105070.0,0.16295253]
[1737298256578,0.84873098,105080.0,105070.0,0.09315177]
[1737298256698,0.84873098,105080.0,105070.0,0.16295253]
[1737298257107,0.63514657,105080.0,105070.0,0.16295253]
[1737298257689,0.63514657,105080.0,105070.0,0.09315177]
[1737298258191,0.84873098,105080.0,105070.0,0.09315177]
[1737298258414,0.84873098,105080.0,105070.0,0.09405057]
[1737298259370,0.63514657,105080.0,105070.0,0.09405057]
[1737298260009,0.61214657,105080.0,105070.0,0.09405057]
[1737298260616,0.61214657,105080.0,105070.0,0.16385133]
[1737298260958,0.61214657,105080.0,105070.0,0.09405057]
[1737298261091,0.61214657,105080.0,105070.0,0.16385133]
[1737298262695,0.31312841,105080.0,105070.0,0.09405057]
[1737298262894,0.40829341,105080.0,105070.0,0.09405057]
[1737298263951,0.83546222,105080.0,105070.0,0.09405057]
[1737298264150,0.74029722,105080.0,105070.0,0.09405057]
[1737298264580,0.83546222,105080.0,105070.0,0.09405057]
[1737298264783,0.83546222,105080.0,105070.0,0.0008988]
[1737298265188,1.02826298,105080.0,105070.0,0.0008988]
[1737298265342,1.10846222,105080.0,105070.0,0.0008988]
[1737298266308,0.9219617,105080.0,105070.0,0.0008988]
[1737298267015,0.89659746,105080.0,105040.0,0.19129854]
[1737298267223,0.31613281,105050.0,105040.0,0.00089754]
[1737298267486,0.43913281,105050.0,105040.0,0.00089754]
[1737298267679,0.44283107,105050.0,105040.0,0.00089754]
[1737298268239,0.24763907,105050.0,105040.0,0.09609854]
[1737298268442,0.82269838,105050.0,105040.0,0.09609854]
[1737298269281,0.81639914,105050.0,105020.0,0.09611475]
[1737298269447,0.81639914,105050.0,105020.0,0.09611575]
[1737298269448,0.1217,105030.0,105020.0,0.09611575]
[1737298269651,0.22094081,105030.0,105020.0,0.28655375]
[1737298269856,0.22463405,105030.0,105020.0,0.28655375]
[1737298270909,0.22472911,105030.0,105020.0,0.28655375]
[1737298271833,0.31993911,105030.0,105020.0,0.09611575]
[1737298272041,0.31993911,105030.0,105020.0,0.00089775]
[1737298272410,0.53973987,105030.0,105020.0,0.00089775]
[1737298272825,0.63896018,105030.0,105020.0,0.00089775]
[1737298273182,0.53973987,105030.0,105020.0,0.00089775]
[1737298273780,0.75333248,105030.0,105020.0,0.00089775]
[1737298273982,0.68353172,105030.0,105020.0,0.00089775]
[1737298274185,0.58832172,105030.0,105020.0,0.09611675]
[1737298274790,0.46016615,105030.0,105020.0,0.09611675]
[1737298275000,0.31016615,105030.0,105020.0,0.09611675]
[1737298275298,0.46016615,105030.0,105020.0,0.09611675]
[1737298276308,0.22472911,105030.0,105020.0,0.09611675]
[1737298278867,0.37472911,105030.0,105020.0,0.09611675]
[1737298280033,0.22472911,105030.0,105020.0,0.09611675]
[1737298280196,0.0037883,105030.0,105020.0,0.31686966]
[1737298280380,0.0037883,105030.0,105020.0,0.31591751]
[1737298280580,0.0037883,105030.0,105020.0,0.24611675]
[1737298283124,0.0037883,105030.0,105020.0,0.31591751]
[1737298286464,0.0037883,105030.0,105020.0,0.32478779]
[1737298286862,0.0037883,105030.0,105020.0,0.46988855]
[1737298287519,0.0037883,105030.0,105020.0,0.24611675]
[1737298287712,0.0799883,105030.0,105020.0,0.24611675]
[1737298287865,0.0799883,105030.0,105020.0,0.31591751]
[1737298288075,0.0037883,105030.0,105020.0,0.38571827]
[1737298288475,0.0037883,105030.0,105020.0,0.42621827]
[1737298290097,0.10302911,105030.0,105020.0,0.24611675]
[1737298290322,0.10302911,105030.0,105020.0,0.31591751]
[1737298291555,0.0037883,105030.0,105020.0,0.31591751]
[1737298294196,0.0037883,105030.0,105020.0,0.24611675]
[1737298294397,0.10302911,105030.0,105020.0,0.24611675]
[1737298295547,0.10302911,105030.0,105020.0,0.31591751]
[1737298299531,0.10302911,105030.0,105020.0,0.24611675]
[1737298300400,0.17922911,105030.0,105020.0,0.24611675]
[1737298304483,0.17922911,105030.0,105020.0,0.31591751]
[1737298305634,0.17922911,105030.0,105020.0,0.24611675]
[1737298306061,0.17922911,105030.0,105020.0,0.31591751]
[1737298307014,0.0037883,105030.0,105020.0,0.38571827]
[1737298307672,0.0037883,105030.0,105020.0,0.52421827]
[1737298309021,0.0037883,105030.0,105020.0,0.54300546]
[1737298309519,0.0037883,105030.0,105020.0,0.55209552]
[1737298309822,0.0037883,105030.0,105020.0,0.34379476]
[1737298311370,0.0037883,105030.0,105020.0,0.41359552]
[1737298312719,0.0037883,105030.0,105020.0,0.43659552]
[1737298315339,0.0037883,105030.0,105020.0,0.47709552]
[1737298320904,0.0792883,105030.0,105020.0,0.273994]
[1737298321117,0.0792883,105030.0,105020.0,0.34379476]
[1737298321943,0.0792883,105030.0,105020.0,0.41359552]
[1737298322956,0.0037883,105030.0,105020.0,0.41359552]
[1737298323420,0.0037883,105030.0,105020.0,0.43659552]
[1737298323883,0.5070667,105050.0,105030.0,0.48890152]
[1737298323884,0.3273502,105050.0,105030.0,0.48890152]
[1737298324084,0.3273502,105050.0,105040.0,0.50799515]
[1737298324085,0.27032834,105050.0,105040.0,0.50799515]
[1737298324236,0.23225034,105050.0,105040.0,0.50704333]
[1737298325268,9.514e-05,105050.0,105040.0,0.40780252]
[1737298326522,9.514e-05,105050.0,105040.0,0.38480252]
[1737298326913,9.514e-05,105050.0,105040.0,0.40367102]
[1737298327924,0.00052334,105050.0,105040.0,0.52591183]
[1737298328286,0.00052334,105050.0,105040.0,0.53494655]
[1737298331520,0.00571167,105050.0,105040.0,0.53494655]
[1737298331719,0.07902334,105050.0,105040.0,0.34290498]
[1737298331922,0.08421167,105050.0,105040.0,0.34290498]
[1737298332120,0.08421167,105050.0,105040.0,0.41270574]
[1737298332516,0.13091167,105050.0,105040.0,0.24770398]
[1737298332718,0.13091167,105050.0,105040.0,0.34290498]
[1737298335449,0.13091167,105050.0,105040.0,0.27310422]
[1737298335649,0.23015248,105050.0,105040.0,0.245201]
[1737298339445,0.35015248,105050.0,105040.0,0.245201]
[1737298340735,0.35015248,105050.0,105040.0,0.31500176]
[1737298341098,0.35015248,105050.0,105040.0,0.245201]
[1737298343942,0.35245762,105050.0,105040.0,0.31500176]
[1737298344100,0.35245762,105050.0,105040.0,0.245201]